fUST/lending_fUST_20260106
["ID","MTS","AMOUNT","RATE_DAILY","PERIOD"]
[400495625,1767665447293,-151.0,0.00015843,2]
[400495626,1767665447303,-151.0,0.00015843,2]
[400495627,1767665447312,-336.0,0.00015843,2]
[400495628,1767665447321,-346.0,0.00015843,2]
[400495629,1767665447331,-151.0,0.00015843,2]
[400495630,1767665447340,-151.0,0.00015843,2]
[400495631,1767665447349,-336.0,0.00015843,2]
[400495632,1767665447358,-151.0,0.00015843,2]
[400495633,1767665447367,-346.0,0.00015843,2]
[400495634,1767665447376,-151.0,0.00015843,2]
[400495635,1767665447385,-336.0,0.00015843,2]
[400495636,1767665447394,-151.0,0.00015843,2]
[400495637,1767665447406,-346.0,0.00015843,2]
[400495638,1767665447414,-151.0,0.00015843,2]
[400495639,1767665447424,-336.0,0.00015843,2]
[400495640,1767665447434,-151.0,0.00015843,2]
[400495641,1767665447446,-346.0,0.00015843,2]
[400495642,1767665447456,-336.0,0.00015843,2]
[400495643,1767665447465,-151.0,0.00015843,2]
[400495644,1767665447474,-151.0,0.00015843,2]
[400495645,1767665447485,-346.0,0.00015843,2]
[400495646,1767665447494,-336.0,0.00015843,2]
[400495647,1767665447503,-151.0,0.00015843,2]
[400495648,1767665447512,-184.30374693,0.00015843,2]
[400495649,1767665447522,-346.0,0.00015843,2]
[400495650,1767665447531,-336.0,0.00015843,2]
[400495651,1767665447540,-151.0,0.00015843,2]
[400495652,1767665447550,-336.0,0.00015843,2]
[400495653,1767665447559,-346.0,0.00015843,2]
[400495654,1767665447569,-151.0,0.00015843,2]
[400495655,1767665447578,-336.0,0.00015843,2]
[400495656,1767665447588,-346.0,0.00015843,2]
[400495657,1767665447597,-151.0,0.00015843,2]
[400495658,1767665447607,-336.0,0.00015843,2]
[400495659,1767665447616,-346.0,0.00015843,2]
[400495660,1767665447722,-151.0,0.00015843,2]
[400495661,1767665447732,-336.0,0.00015843,2]
[400495662,1767665447741,-151.0,0.00015843,2]
[400495663,1767665447751,-346.0,0.00015843,2]
[400495664,1767665447760,-336.0,0.00015843,2]
[400495665,1767665447769,-151.0,0.00015843,2]
[400495666,1767665447778,-346.0,0.00015843,2]
[400495667,1767665447787,-336.0,0.00015843,2]
[400495668,1767665447796,-346.0,0.00015843,2]
[400495669,1767665447806,-151.0,0.00015843,2]
[400495670,1767665447815,-336.0,0.00015843,2]
[400495671,1767665447825,-346.0,0.00015843,2]
[400495672,1767665447834,-151.0,0.00015843,2]
[400495673,1767665447842,-336.0,0.00015843,2]
[400495674,1767665447851,-346.0,0.00015843,2]
[400495675,1767665447860,-151.0,0.00015843,2]
[400495676,1767665447869,-336.0,0.00015843,2]
[400495677,1767665447879,-346.0,0.00015843,2]
[400495678,1767665447888,-151.0,0.00015843,2]
[400495679,1767665447898,-336.0,0.00015843,2]
[400495680,1767665447908,-346.0,0.00015843,2]
[400495681,1767665447920,-262.02712061,0.00015843,2]
[400495682,1767665447933,-374.38561744,0.00015843,2]
[400495683,1767665447951,-346.0,0.00015843,2]
[400495684,1767665447960,-346.0,0.00015843,2]
[400495685,1767665447973,-346.0,0.00015843,2]
[400495686,1767665447982,-346.0,0.00015843,2]
[400495687,1767665447992,-346.0,0.00015843,2]
[400495688,1767665448001,-346.0,0.00015843,2]
[400495689,1767665448011,-1500.0,0.00015864,2]
[400495690,1767665448020,-409.51288327,0.0001589,2]
[400495691,1767665448030,-1583.90657441,0.0001589,2]
[400495692,1767665448040,-2007.97195792,0.0001589,2]
[400495693,1767665448050,-511.61353792,0.0001589,2]
[400495694,1767665448063,-2500.0,0.0001589,2]
[400495695,1767665448073,-2500.0,0.0001589,2]
[400495696,1767665448082,-473.47459044,0.0001589,2]
[400495697,1767665448092,-1142.90527904,0.0001589,2]
[400495698,1767665448101,-2500.0,0.0001589,2]
[400495699,1767665448110,-2500.0,0.0001589,2]
[400495700,1767665448119,-1544.59336019,0.0001589,2]
[400495701,1767665448128,-304.92823426,0.0001589,2]
[400495702,1767665448137,-2563.41663894,0.0001589,2]
[400495703,1767665448146,-2500.0,0.0001589,2]
[400495704,1767665448155,-2500.0,0.0001589,2]
[400495705,1767665448164,-1003.41203259,0.0001589,2]
[400495706,1767665448173,-346.0,0.00015915,2]
[400495707,1767665448182,-346.0,0.00015915,2]
[400495708,1767665448190,-189.35618474,0.00015915,2]
[400495709,1767665448199,-151.0,0.00015915,2]
[400495710,1767665448208,-5000.0,0.00015939,2]
[400495711,1767665448217,-170.73155875,0.00015968,13]
[400495712,1767665448226,-3000.0,0.00016,2]
[400495713,1767665448235,-3000.0,0.0001601,2]
[400495714,1767665448244,-3000.0,0.00016012,2]
[400495715,1767665448252,-1361.15798132,0.00016012,2]
[400495716,1767665448262,-3000.0,0.00016012,2]
[400495717,1767665448271,-3000.0,0.00016012,2]
[400495718,1767665448280,-3000.0,0.00016012,2]
[400495719,1767665448288,-679.86301717,0.00016012,2]
[400495720,1767665448297,-3000.0,0.00016012,2]
[400495721,1767665448308,-3000.0,0.00016012,2]
[400495722,1767665448316,-3000.0,0.0001602,2]
[400495723,1767665448326,-3000.0,0.0001603,2]
[400495724,1767665448334,-3000.0,0.0001604,2]
[400495725,1767665448343,-5758.300242,0.0001605,2]
[400495726,1767665448352,-1146.854911,0.0001605,2]
[400495727,1767665448362,-1146.854911,0.0001605,2]
[400495728,1767665448371,-1146.854911,0.0001605,2]
[400495729,1767665448380,-1146.854911,0.0001605,2]
[400495730,1767665448389,-801.09070688,0.00016164,2]
[400495731,1767665448398,-172.0,0.0001631,2]
[400495732,1767665448407,-170.73155875,0.00016325,15]
[400495733,1767665448417,-247.4918086,0.00016329,2]
[400495734,1767665448426,-600.0,0.00016354,2]
[400495735,1767665448435,-160.13,0.00016358,2]
[400495736,1767665448448,-1486.81663952,0.00016412,2]
[400495737,1767665448458,-160.0,0.00016424,3]
[400495738,1767665448467,-500.0,0.00016438,2]
[400495739,1767665448477,-594.0421836,0.00016438,2]
[400495740,1767665448486,-511.34041447,0.00016438,2]
[400495741,1767665448496,-690.51130763,0.00016438,2]
[400495742,1767665448505,-533.7772006,0.00016438,2]
[400495743,1767665448516,-3000.0,0.00016438,2]
[400495744,1767665448526,-505.12105821,0.00016438,2]
[400495745,1767665448535,-3006.10461326,0.00016438,2]
[400495746,1767665448545,-386.6354894,0.00016486,2]
[400495747,1767665448554,-376.751993,0.00016486,2]
[400495748,1767665448564,-376.751993,0.00016486,2]
[400495749,1767665448573,-376.751993,0.00016486,2]
[400495750,1767665448582,-172.0,0.00016505,2]
[400495751,1767665448592,-226.603026,0.0001656,2]
[400495752,1767665448600,-226.603026,0.0001656,2]
[400495753,1767665448611,-226.603026,0.0001656,2]
[400495754,1767665448621,-226.603026,0.0001656,2]
[400495755,1767665448631,-695.16828372,0.0001656,2]
[400495756,1767665448641,-3500.0,0.0001656,2]
[400495757,1767665448650,-2880.83045081,0.0001656,2]
[400495758,1767665448659,-538.81751467,0.0001656,2]
[400495759,1767665448668,-3024.85596201,0.0001656,2]
[400495760,1767665448677,-3500.0,0.0001656,2]
[400495761,1767665448686,-172.0,0.00016589,2]
[400495762,1767665448695,-161.11030349,0.00016601,2]
[400495763,1767665448704,-172.0,0.00016682,2]
[400495764,1767665448713,-170.73155875,0.00016682,16]
[400495765,1767665448722,-1000.0,0.00016803,2]
[400495766,1767665448731,-791.0,0.00016803,2]
[400495767,1767665448741,-172.0,0.00016833,2]
[400495768,1767665448750,-628.0,0.00016852,2]
[400495769,1767665448759,-2145.0,0.00016852,2]
[400495770,1767665448769,-1365.0,0.00016852,2]
[400495771,1767665448782,-160.0,0.000169,2]
[400495772,1767665448792,-160.0,0.000169,2]
[400495773,1767665448801,-172.0,0.00016924,2]
[400495774,1767665448810,-3500.0,0.00016986,2]
[400495775,1767665448819,-172.0,0.00016993,2]
[400495776,1767665448829,-170.73155875,0.0001704,18]
[400495777,1767665448839,-2490.05554086,0.00017108,2]
[400495778,1767665448848,-186.60450751,0.00017108,2]
[400495779,1767665448856,-160.0,0.00017119,4]
[400495780,1767665448867,-153.0,0.00017151,2]
[400495781,1767665448877,-153.0,0.00017151,2]
[400495782,1767665448886,-153.0,0.00017151,2]
[400495783,1767665448895,-153.0,0.00017151,2]
[400495784,1767665448903,-155.5943316,0.00017151,2]
[400495785,1767665448913,-153.0,0.00017151,2]
[400495786,1767665448923,-153.0,0.00017151,2]
[400495787,1767665448934,-153.0,0.00017151,2]
[400495788,1767665448952,-153.0,0.00017151,2]
[400495789,1767665448961,-153.0,0.00017151,2]
[400495790,1767665448971,-153.0,0.00017151,2]
[400495791,1767665448980,-153.0,0.00017151,2]
[400495792,1767665448990,-172.0,0.00017199,2]
[400495793,1767665448999,-172.0,0.0001725,2]
[400495794,1767665449008,-600.0,0.00017278,2]
[400495795,1767665449017,-524.37441911,0.00017299,2]
[400495796,1767665449026,-172.0,0.00017346,2]
[400495797,1767665449035,-172.0,0.0001736,2]
[400495798,1767665449044,-170.73155875,0.00017397,19]
[400495799,1767665449053,-376.751993,0.00017444,2]
[400495800,1767665449064,-376.751993,0.00017444,2]
[400495801,1767665449073,-376.751993,0.00017444,2]
[400495802,1767665449083,-753.0740212,0.00017444,2]
[400495803,1767665449092,-600.0,0.00017458,2]
[400495804,1767665449102,-172.0,0.00017483,2]
[400495805,1767665449111,-172.0,0.00017497,2]
[400495806,1767665449120,-172.0,0.00017507,2]
[400495807,1767665449129,-172.0,0.00017513,2]
[400495808,1767665449138,-98532.01331942,0.00017531,2]
[400495809,1767665449148,-4000.0,0.00017534,2]
[400495810,1767665449157,-172.0,0.00017554,2]
[400495811,1767665449167,-172.0,0.00017567,2]
[400495812,1767665449176,-172.0,0.00017602,2]
[400495813,1767665449185,-932.9612115,0.00017618,2]
[400495814,1767665449195,-151.0,0.00017638,2]
[400495815,1767665449204,-1639.96449792,0.00017638,2]
[400495816,1767665449213,-600.0,0.00017638,2]
[400495817,1767665449222,-172.0,0.00017671,2]
[400495818,1767665449231,-172.0,0.00017682,2]
[400495819,1767665449240,-172.0,0.00017695,2]
[400495820,1767665449250,-600.0,0.00017724,7]
[400495821,1767665449259,-268.01,0.00017738,2]
[400495822,1767665449268,-170.73155875,0.00017754,21]
[400495823,1767665449277,-172.0,0.00017785,2]
[400495824,1767665449287,-204.51551974,0.00017791,2]
[400495825,1767665449296,-160.0,0.000178,3]
[400495826,1767665449305,-160.0,0.000178,3]
[400495827,1767665449314,-1146.854911,0.000178,2]
[400495828,1767665449323,-1146.854911,0.000178,2]
[400495829,1767665449332,-1146.854911,0.000178,2]
[400495830,1767665449341,-1146.854917,0.000178,2]
[400495831,1767665449351,-226.603026,0.000178,2]
[400495832,1767665449360,-226.603026,0.000178,2]
[400495833,1767665449369,-226.603026,0.000178,2]
[400495834,1767665449378,-226.603034,0.000178,2]
[400495835,1767665449387,-132340.89245895,0.000178,3]
[400495836,1767665449397,-160.0,0.00017814,5]
[400495837,1767665449407,-601.19459609,0.00017818,2]
[400495838,1767665449417,-172.0,0.00017908,2]
[400495839,1767665449426,-172.0,0.00017964,2]
[400495840,1767665449435,-38000.0,0.0001799,3]
[400495841,1767665449447,-160.860139,0.0001799,2]
[400495842,1767665449456,-8869.87918926,0.0001799,3]
[400495843,1767665449465,-18314.772703,0.00017998,2]
[400495844,1767665449474,-849.220218,0.00017998,2]
[400495845,1767665449483,-2307.49995488,0.00017998,2]
[400495846,1767665449991,-3e-08,0.00014648,2]
[400495847,1767665450002,-999.3076169,0.00014648,2]
[400495848,1767665450134,-515.53,0.00014648,2]
[400495849,1767665450145,-908.51,0.00014648,2]
[400495850,1767665450242,-58.20275221,0.00014648,2]
[400495851,1767665450252,-290.31,0.000148,2]
[400495852,1767665450261,-290.31,0.000152,2]
[400495853,1767665450274,-290.31,0.000157,2]
[400495854,1767665450284,-346.0,0.00015843,2]
[400495855,1767665450294,-290.31,0.000161,2]
[400495856,1767665450303,-290.31,0.000165,2]
[400495857,1767665450313,-290.31,0.000169,2]
[400495858,1767665450322,-290.31,0.000174,2]
[400495859,1767665450331,-290.31,0.000178,2]
[400495860,1767665450341,-479.0,0.00017927,2]
[400495861,1767665450350,-2776.28290448,0.00017998,2]
[400495862,1767665708722,3193.0,0.00030136,120]
[400495865,1767665848577,168.38,9.3e-05,2]
[400495866,1767665848985,168.38,9.7e-05,2]
[400495867,1767665908332,410.48,9.3e-05,2]
[400495868,1767665908764,410.48,9.7e-05,2]
[400495869,1767665929408,532.0,0.00030137,120]
[400495870,1767665968170,178.06,9.3e-05,2]
[400495871,1767665968699,178.06,9.7e-05,2]
[400495874,1767666029349,401.19,9.3e-05,2]
[400495875,1767666029872,401.19,9.7e-05,2]
[400495876,1767666087184,186.98,9.3e-05,2]
[400495877,1767666087766,186.98,9.7e-05,2]
[400495879,1767666148252,392.62,9.3e-05,2]
[400495880,1767666148679,392.62,9.7e-05,2]
[400495882,1767666207152,195.21,9.3e-05,2]
[400495883,1767666207315,195.21,9.7e-05,2]
[400495884,1767666267353,384.72,9.3e-05,2]
[400495885,1767666267661,384.72,9.7e-05,2]
[400495886,1767666325949,202.79,9.3e-05,2]
[400495887,1767666326321,202.79,9.7e-05,2]
[400495897,1767666387826,377.45,9.3e-05,2]
[400495898,1767666388354,377.45,9.7e-05,2]
[400495903,1767666448819,209.77,9.3e-05,2]
[400495904,1767666449256,209.77,9.7e-05,2]
[400495909,1767666507083,370.75,9.3e-05,2]
[400495910,1767666507523,370.75,9.7e-05,2]
[400495913,1767666567645,216.21,9.3e-05,2]
[400495914,1767666568072,216.21,9.7e-05,2]
[400495915,1767666628462,364.56,9.3e-05,2]
[400495916,1767666628775,364.56,9.7e-05,2]
[400495945,1767666631718,-1200.0,9.998e-05,2]
[400495946,1767666631727,-23.78522574,9.999e-05,2]
[400495997,1767666637828,-4976.21477426,9.999e-05,2]
[400495999,1767666637840,-560.0,9.999e-05,2]
[400496002,1767666637852,-282.09006659,0.0001005,2]
[400496004,1767666637864,-364.56,0.000101,2]
[400496006,1767666637878,-3248.91966386,0.00010246,2]
[400496008,1767666637890,-364.56,0.000106,2]
[400496011,1767666637901,-300.0,0.00010999,2]
[400496012,1767666637912,-364.56,0.00011,2]
[400496014,1767666637924,-300.0,0.00011218,2]
[400496016,1767666637936,-300.0,0.00011219,2]
[400496019,1767666637947,-300.0,0.00011219,2]
[400496021,1767666637958,-300.0,0.00011219,2]
[400496023,1767666637972,-300.0,0.00011219,2]
[400496025,1767666637983,-300.0,0.00011219,2]
[400496027,1767666637993,-300.0,0.00011219,2]
[400496029,1767666638004,-300.0,0.00011219,2]
[400496032,1767666638015,-300.0,0.00011219,2]
[400496034,1767666638027,-300.0,0.00011219,2]
[400496035,1767666638038,-300.0,0.00011219,2]
[400496036,1767666638050,-300.0,0.00011219,2]
[400496037,1767666638061,-300.0,0.00011219,2]
[400496038,1767666638072,-300.0,0.00011219,2]
[400496039,1767666638084,-300.0,0.00011219,2]
[400496040,1767666638097,-300.0,0.00011219,2]
[400496041,1767666638108,-364.56,0.000114,2]
[400496042,1767666638119,-600.0,0.00011442,2]
[400496043,1767666638132,-364.56,0.000118,2]
[400496044,1767666638144,-1140.1516104,0.00011826,2]
[400496045,1767666638156,-332.86627858,0.0001205,2]
[400496046,1767666638168,-364.56,0.000123,2]
[400496047,1767666638180,-720.0,0.00012587,2]
[400496048,1767666638193,-364.56,0.000127,2]
[400496049,1767666638203,-364.56,0.000131,2]
[400496050,1767666638213,-500.0,0.00013273,2]
[400496051,1767666638225,-500.0,0.00013273,2]
[400496052,1767666638235,-497.04994014,0.00013273,2]
[400496053,1767666638245,-500.0,0.00013273,2]
[400496054,1767666638255,-500.0,0.00013273,2]
[400496055,1767666638267,-500.0,0.00013273,2]
[400496056,1767666638279,-500.0,0.00013273,2]
[400496057,1767666638292,-186.60450751,0.00013273,2]
[400496058,1767666638304,-160.0,0.00013405,2]
[400496059,1767666638316,-1041.66666667,0.00013405,2]
[400496061,1767666638327,-364.56,0.000135,2]
[400496063,1767666638338,-500.0,0.00013699,2]
[400496065,1767666638348,-158.50790486,0.00013699,2]
[400496067,1767666638359,-307.83146814,0.00013699,2]
[400496069,1767666638369,-500.0,0.00013699,2]
[400496071,1767666638381,-500.0,0.00013699,2]
[400496073,1767666638391,-500.0,0.00013699,2]
[400496075,1767666638403,-262.77669447,0.00013699,2]
[400496077,1767666638416,-237.22330553,0.00013699,2]
[400496080,1767666638427,-211.63941161,0.00013821,2]
[400496082,1767666638440,-352.50912325,0.00013821,2]
[400496084,1767666638449,-1000.0,0.00013821,2]
[400496086,1767666638459,-296.91794967,0.00013821,2]
[400496258,1767666640071,-703.08205033,0.00013821,2]
[400496260,1767666640082,-399.32362502,0.00013821,2]
[400496292,1767666640374,-444.85685541,0.00013821,2]
[400496294,1767666640383,-1000.0,0.00013821,2]
[400496296,1767666640392,-240.74399382,0.00013821,2]
[400496369,1767666644180,-759.25600618,0.00013821,2]
[400496370,1767666644190,-864.0,0.00013845,2]
[400496371,1767666644199,-500.0,0.00013898,2]
[400496372,1767666644208,-500.0,0.00013898,2]
[400496373,1767666644217,-500.0,0.00013898,2]
[400496374,1767666644226,-500.0,0.00013898,2]
[400496375,1767666644235,-500.0,0.00013898,2]
[400496376,1767666644244,-500.0,0.00013898,2]
[400496377,1767666644253,-500.0,0.00013898,2]
[400496378,1767666644262,-500.0,0.00013898,2]
[400496379,1767666644271,-500.0,0.00013898,2]
[400496380,1767666644280,-500.0,0.00013898,2]
[400496381,1767666644289,-500.0,0.00013898,2]
[400496382,1767666644298,-500.0,0.00013898,2]
[400496383,1767666644308,-268.54850899,0.00013898,2]
[400496384,1767666644317,-500.0,0.00013898,2]
[400496385,1767666644326,-500.0,0.00013898,2]
[400496386,1767666644336,-504.72051064,0.00013898,2]
[400496387,1767666644345,-500.0,0.00013898,2]
[400496388,1767666644354,-500.0,0.00013898,2]
[400496389,1767666644363,-500.0,0.00013898,2]
[400496390,1767666644373,-500.0,0.00013898,2]
[400496391,1767666644382,-16482.34253668,0.00013902,2]
[400496392,1767666644923,-885.49427622,0.00013902,2]
[400496393,1767666644932,-500.0,0.00014,2]
[400496394,1767666644941,-364.56,0.00014,2]
[400496395,1767666644950,-383.64249056,0.0001405,2]
[400496396,1767666644960,-454.77559277,0.00014247,2]
[400496397,1767666644970,-545.22440723,0.00014247,2]
[400496398,1767666644980,-453.54190824,0.00014247,2]
[400496406,1767666645943,-546.96725952,0.00014247,2]
[400496407,1767666645953,-814.30294891,0.00014247,2]
[400496409,1767666683665,155.53,9.3e-05,2]
[400496410,1767666683979,500.0,0.00030136,120]
[400496411,1767666684585,500.0,0.00030136,120]
[400496412,1767666684904,500.0,0.00030136,120]
[400496413,1767666685155,500.0,0.00030136,120]
[400496414,1767666685423,500.0,0.00030136,120]
[400496415,1767666685676,500.0,0.00030136,120]
[400496416,1767666685900,500.0,0.00030136,120]
[400496417,1767666686498,500.0,0.00030136,120]
[400496418,1767666686741,500.0,0.00030136,120]
[400496419,1767666686979,500.0,0.00030136,120]
[400496420,1767666687220,500.0,0.00030136,120]
[400496421,1767666687491,500.0,0.00030136,120]
[400496422,1767666687770,500.0,0.00030136,120]
[400496423,1767666688062,500.0,0.00030136,120]
[400496424,1767666688304,500.0,0.00030136,120]
[400496425,1767666688687,500.0,0.00030136,120]
[400496426,1767666689275,500.0,0.00030136,120]
[400496427,1767666689519,500.0,0.00030136,120]
[400496428,1767666689731,500.0,0.00030136,120]
[400496429,1767666689971,522.13829153,0.00030136,120]
[400496433,1767666732484,280.18,9.3e-05,2]
[400496434,1767666732797,280.18,9.7e-05,2]
[400496435,1767666807327,152.43,9.3e-05,2]
[400496436,1767666854017,272.02,9.3e-05,2]
[400496437,1767666854526,272.02,9.7e-05,2]
[400496440,1767666926926,156.38,9.3e-05,2]
[400496441,1767666975681,264.27,9.3e-05,2]
[400496442,1767666976199,264.27,9.7e-05,2]
[400496451,1767667047558,152.5,9.3e-05,2]
[400496453,1767667096149,256.75,9.3e-05,2]
[400496454,1767667096583,256.75,9.7e-05,2]
[400496456,1767667168949,154.57,9.3e-05,2]
[400496458,1767667222072,249.57,9.3e-05,2]
[400496459,1767667222483,249.57,9.7e-05,2]
[400496460,1767667262468,1372.94800771,9.8e-05,2]
[400496463,1767667285814,2205.75997613,9.8e-05,2]
[400496464,1767667286425,150.6,9.3e-05,2]
[400496467,1767667323030,170.13665283,0.00023382,120]
[400496468,1767667334302,155.0,3e-05,2]
[400496469,1767667339697,249.5,9.3e-05,2]
[400496470,1767667340217,249.5,9.7e-05,2]
[400496471,1767667406311,152.07,9.3e-05,2]
[400496473,1767667459018,242.56,9.3e-05,2]
[400496474,1767667459430,242.56,9.7e-05,2]
[400496477,1767667526882,152.92,9.3e-05,2]
[400496491,1767667579136,235.92,9.3e-05,2]
[400496492,1767667579510,235.92,9.7e-05,2]
[400496499,1767667647885,153.28,9.3e-05,2]
[400496509,1767667701153,229.55,9.3e-05,2]
[400496510,1767667701569,229.55,9.7e-05,2]
[400496511,1767667745233,415.80999989,0.00030136,120]
[400496512,1767667766904,153.26,9.3e-05,2]
[400496513,1767667767212,153.26,9.8e-05,2]
[400496516,1767667821509,226.5,9.3e-05,2]
[400496517,1767667822210,226.5,9.7e-05,2]
[400496603,1767667838008,-559.0,9.899e-05,2]
[400496605,1767667838018,-262.11808988,9.9e-05,2]
[400496607,1767667838028,-226.5,0.000101,2]
[400496609,1767667838037,-226.5,0.000106,2]
[400496611,1767667838047,-226.5,0.00011,2]
[400496613,1767667838056,-226.5,0.000114,2]
[400496615,1767667838066,-226.5,0.000118,2]
[400496617,1767667838075,-309.29934605,0.000119,2]
[400496619,1767667838084,-226.5,0.000123,2]
[400496621,1767667838094,-226.5,0.000127,2]
[400496623,1767667838104,-226.5,0.000131,2]
[400496625,1767667838114,-500.0,0.00013204,2]
[400496627,1767667838124,-500.0,0.00013204,2]
[400496629,1767667838134,-284.63588231,0.00013204,2]
[400496631,1767667838145,-500.0,0.00013204,2]
[400496633,1767667838154,-500.0,0.00013204,2]
[400496635,1767667838163,-500.0,0.00013204,2]
[400496637,1767667838172,-500.0,0.00013204,2]
[400496639,1767667838182,-500.0,0.00013204,2]
[400496641,1767667838192,-500.0,0.00013204,2]
[400496643,1767667838202,-237.9839563,0.00013204,2]
[400496646,1767667838212,-603.30435744,0.00013204,2]
[400496647,1767667838222,-500.0,0.00013204,2]
[400496650,1767667838232,-500.0,0.00013204,2]
[400496652,1767667838254,-500.0,0.00013204,2]
[400496654,1767667838272,-500.0,0.00013204,2]
[400496656,1767667838281,-500.0,0.00013204,2]
[400496658,1767667838292,-500.0,0.00013204,2]
[400496660,1767667838301,-500.0,0.00013204,2]
[400496662,1767667838311,-500.0,0.00013204,2]
[400496664,1767667838321,-462719.41088054,0.00013205,2]
[400496666,1767667838332,-3347.19808484,0.00013205,2]
[400496846,1767667840528,-22116.59487579,0.00013205,2]
[400496851,1767667844234,-2439.68728602,0.00013205,2]
[400496864,1767667846117,-500.0,0.00013204,2]
[400496865,1767667846127,-500.0,0.00013204,2]
[400496866,1767667846136,-450.0,0.00013204,2]
[400496867,1767667846146,-500.0,0.00013204,2]
[400496868,1767667846155,-500.0,0.00013204,2]
[400496869,1767667846165,-500.0,0.00013204,2]
[400496870,1767667846174,-500.0,0.00013204,2]
[400496871,1767667846184,-2831.99912792,0.00013205,2]
[400496872,1767667942753,151.3,9.3e-05,2]
[400496873,1767667988263,166.11,9.3e-05,2]
[400496874,1767667988784,166.11,9.7e-05,2]
[400496875,1767668067837,156.2,9.3e-05,2]
[400496876,1767668108433,162.59,9.3e-05,2]
[400496877,1767668109038,162.59,9.7e-05,2]
[400496878,1767668186780,158.03,9.3e-05,2]
[400496879,1767668227706,159.25,9.3e-05,2]
[400496880,1767668228025,159.25,9.7e-05,2]
[400496885,1767668307524,158.31,9.3e-05,2]
[400496886,1767668348815,156.05,9.3e-05,2]
[400496887,1767668349241,156.05,9.7e-05,2]
[400496889,1767668418722,651.01399924,0.0003,120]
[400496890,1767668426946,157.79,9.3e-05,2]
[400496891,1767668468975,152.96,9.3e-05,2]
[400496892,1767668469496,152.96,9.7e-05,2]
[400496895,1767668513645,1009.0,0.00030136,120]
[400496896,1767668548231,156.84,9.3e-05,2]
[400496897,1767668589465,153.04,9.3e-05,2]
[400496898,1767668589915,153.04,9.7e-05,2]
[400496899,1767668666446,156.15,9.3e-05,2]
[400496900,1767668710793,153.1,9.3e-05,2]
[400496901,1767668711452,153.1,9.7e-05,2]
[400496905,1767668787111,155.66,9.3e-05,2]
[400496906,1767668831801,153.15,9.3e-05,2]
[400496907,1767668832234,153.15,9.7e-05,2]
[400496908,1767668905180,155.29,9.3e-05,2]
[400496909,1767668950716,153.2,9.3e-05,2]
[400496910,1767668951286,153.2,9.7e-05,2]
[400496911,1767668990823,-5000.0,9.899e-05,2]
[400496912,1767669002527,5000.0,9.9e-05,2]
[400496913,1767669025753,154.98,9.3e-05,2]
[400496947,1767669032084,-560.0,9.999e-05,2]
[400496949,1767669032093,-47.51500014,0.0001,2]
[400496951,1767669032106,-220.50683743,0.0001,2]
[400496953,1767669032115,-227.33578296,0.00010191,2]
[400496957,1767669032138,-903.97069054,0.00010191,2]
[400496959,1767669032147,-154.98,0.000109,2]
[400496961,1767669032156,-2112.61294701,0.00011449,2]
[400496963,1767669032166,-316.26576834,0.00011999,2]